bitfinex/quotes_ETHUSD_20241116
["timestamp","ask_amount","ask_price","bid_price","bid_amount"]
[1731769533447,0.55,3160.6,3159.5,3.56068276]
[1731769533656,3.16433,3160.3,3159.5,3.64563299]
[1731769533811,3.16433,3160.3,3159.5,0.48059299]
[1731769534138,3.16405,3160.5,3159.5,0.48059299]
[1731769534139,3.16435,3160.2,3159.5,3.64559299]
[1731769534331,3.16452,3160.1,3159.6,0.69563124]
[1731769534656,0.55,3160.6,3159.4,0.1455694]
[1731769534657,3.16425,3160.3,3159.7,0.08403717]
[1731769534933,3.16425,3160.3,3159.4,0.1455694]
[1731769534934,3.16475,3159.8,3159.4,0.1455694]
[1731769535147,3.16486,3159.7,3159.5,0.08499408]
[1731769535449,3.16495,3159.6,3159.5,0.08499408]
[1731769535595,3.16486,3159.7,3159.5,0.08499408]
[1731769535995,3.16495,3159.6,3159.5,0.08499408]
[1731769536920,3.16475,3159.8,3159.5,0.08499408]
[1731769537123,3.16456,3160.0,3159.5,0.08499408]
[1731769537330,3.16456,3160.0,3159.5,0.42456843]
[1731769537828,3.16385,3160.7,3159.5,0.42456843]
[1731769538041,3.16443,3160.2,3159.5,0.08499408]
[1731769538351,3.16458,3160.0,3159.5,0.08499408]
[1731769538558,3.16465,3159.9,3159.5,0.42455843]
[1731769538714,3.16465,3159.9,3159.5,0.08499408]
[1731769539361,0.55,3160.6,3159.9,3.16464]
[1731769539556,0.55,3160.6,3159.7,3.16479]
[1731769539713,3.16398,3160.6,3160.0,0.08423498]
[1731769539914,3.70033229,3161.5,3160.0,3.16455]
[1731769539915,3.16357,3161.0,3160.0,3.16455]
[1731769540109,3.16357,3161.0,3160.3,3.16424]
[1731769540313,3.16366,3160.9,3160.4,0.08401889]
[1731769540546,3.69033229,3161.5,3160.1,38.22767295]
[1731769540547,3.16339,3161.2,3160.1,38.22767295]
[1731769540858,3.16269,3161.9,3160.5,3.16398]
[1731769540859,3.69033229,3161.9,3160.5,3.16398]
[1731769541074,3.16336,3161.2,3160.3,3.16425]
[1731769541232,3.16275,3161.8,3160.6,0.08045254]
[1731769541431,3.16366,3160.9,3160.2,3.14099947]
[1731769541630,3.16366,3160.9,3160.7,0.0752503]
[1731769541830,3.16399,3160.6,3159.9,3.16458]
[1731769542131,3.16378,3160.8,3160.1,3.16445]
[1731769542331,6.16316,3161.4,3160.1,3.16445]
[1731769542532,3.16372,3160.9,3160.2,0.316445]
[1731769542755,3.16402,3160.6,3159.9,3.16458]
[1731769543056,3.16407,3160.5,3159.9,3.16458]
[1731769543262,3.16377,3160.8,3159.9,3.16458]
[1731769543467,3.16393,3160.7,3160.0,35.0]
[1731769543671,3.16454,3160.1,3159.4,0.1455694]
[1731769543877,3.16463,3160.0,3159.4,0.1455694]
[1731769544169,3.16494,3159.7,3159.4,0.1455694]
[1731769544456,0.316463,3160.0,3159.4,0.1455694]
[1731769544457,3.16484,3159.8,3159.4,0.1455694]
[1731769544616,3.16457,3160.0,3159.4,0.1455694]
[1731769544813,3.16467,3159.9,3159.4,0.1455694]
[1731769545019,3.16498,3159.6,3159.4,0.1455694]
[1731769545249,3.16485,3159.7,3159.4,0.1455694]
[1731769545615,3.16466,3159.9,3159.4,0.1455694]
[1731769546789,3.16447,3160.1,3159.5,3.16503]
[1731769546990,3.16393,3160.7,3159.7,3.16481]
[1731769546991,3.16416,3160.4,3159.7,3.16481]
[1731769547292,3.16416,3160.4,3159.7,3.48762104]
[1731769547497,3.16401,3160.6,3159.9,3.16463]
[1731769547631,3.16408,3160.5,3159.9,3.16463]
[1731769548643,3.16408,3160.5,3159.8,35.0]
[1731769548944,3.16416,3160.4,3159.9,2.69303256]
[1731769549161,3.16416,3160.4,3159.7,3.48762104]
[1731769549162,3.16416,3160.4,3159.8,0.03]
[1731769549388,3.16443,3160.2,3160.0,0.07895812]
[1731769549582,3.16443,3160.2,3159.8,0.03]
[1731769549583,3.69045266,3160.6,3159.9,0.07785221]
[1731769549742,3.16435,3160.2,3160.1,0.07777779]
[1731769549952,3.16479,3159.8,3159.4,0.1455694]
[1731769550292,3.16481,3159.8,3159.5,0.10800922]
[1731769550651,3.16486,3159.7,3159.5,0.10800922]
[1731769550845,3.1647,3159.9,3159.5,0.07800922]
[1731769551285,3.69045266,3160.2,3159.5,0.07800922]
[1731769551286,3.16438,3160.2,3159.5,0.07800922]
[1731769551546,3.16438,3160.2,3159.6,3.16493]
[1731769551862,3.16438,3160.2,3159.7,0.39446404]
[1731769552064,3.16438,3160.2,3159.7,0.07797104]
[1731769552896,3.16426,3160.3,3159.7,3.16485]
[1731769553057,3.16426,3160.3,3159.8,0.07847142]
[1731769553591,3.16426,3160.3,3159.9,0.078446]
[1731769553887,3.16455,3160.0,3159.9,0.078446]
[1731769554057,3.16468,3159.9,3159.4,0.1455694]
[1731769554267,3.16447,3160.1,3159.5,0.03]
[1731769554448,3.16428,3160.3,3159.6,0.06329782]
[1731769554651,3.16428,3160.3,3159.5,3.16505]
[1731769554892,3.16437,3160.2,3159.6,0.36268194]
[1731769555074,3.16463,3160.0,3159.6,0.36268194]
[1731769555257,3.16466,3159.9,3159.4,0.1455694]
[1731769555461,3.16463,3160.0,3159.4,0.1455694]
[1731769555801,3.69045266,3160.6,3159.4,0.1455694]
[1731769555802,3.16483,3159.8,3159.4,0.1455694]
[1731769556016,3.16461,3160.0,3159.4,0.1455694]
[1731769556302,3.69045266,3160.6,3159.4,0.1455694]
[1731769556592,3.16488,3159.7,3159.4,0.1455694]
[1731769556796,3.16505,3159.5,3159.4,0.1455694]
[1731769560751,3.71505,3159.5,3159.4,0.1455694]
[1731769563205,3.71505,3159.5,3159.4,9.4e-06]
[1731769563206,6.71505,3159.5,3159.4,9.4e-06]
[1731769563354,7.713043,3159.5,3159.4,9.4e-06]
[1731769564273,3.16505,3159.5,3159.4,9.4e-06]
[1731769566870,6.21242506,3159.5,3159.4,9.4e-06]
[1731769567699,6.21203506,3159.9,3159.4,9.4e-06]
[1731769567922,3.16476,3159.8,3159.4,9.4e-06]
[1731769568201,3.04737506,3159.9,3159.5,0.06550695]
[1731769568373,3.16495,3159.6,3159.5,0.06550695]
[1731769568579,6.21232506,3159.6,3159.5,0.06550695]
[1731769568816,7.15003257,3159.6,3159.5,0.06550695]
[1731769569015,6.21232506,3159.6,3159.4,9.4e-06]
[1731769569302,3.16505,3159.5,3159.4,9.4e-06]
[1731769570397,3.71505,3159.5,3159.4,9.4e-06]
[1731769573035,6.85892717,3159.5,3159.4,9.4e-06]
[1731769574216,7.40892717,3159.5,3159.4,9.4e-06]
[1731769574361,8.46630589,3159.5,3159.4,9.4e-06]
[1731769574560,11.46630589,3159.5,3159.4,9.4e-06]
[1731769575179,11.47630589,3159.5,3159.4,9.4e-06]
[1731769575377,3.16666,3157.9,3157.2,3.16728]
[1731769575592,3.16646,3158.1,3157.3,0.316728]
[1731769575827,3.16657,3158.0,3157.4,3.16709]
[1731769575980,3.16618,3158.4,3157.4,3.16709]
[1731769576326,3.16643,3158.2,3157.5,0.4124339]
[1731769576608,3.16617,3158.4,3157.5,3.5794239]
[1731769576765,3.16636,3158.2,3157.5,3.5794239]
[1731769577406,3.16636,3158.2,3157.6,3.16694]
[1731769577611,3.16636,3158.2,3157.6,3.23047289]
[1731769577780,3.16636,3158.2,3157.7,0.35788547]
[1731769578115,3.69387717,3159.0,3157.7,0.35788547]
[1731769578116,0.55,3158.7,3157.7,0.42138017]
[1731769578268,3.16645,3158.2,3157.7,0.0634947]
[1731769578468,3.16648,3158.1,3157.4,3.16716]
[1731769578665,3.16666,3157.9,3157.8,0.06318944]
[1731769578867,3.16644,3158.2,3157.2,3.79737833]
[1731769578868,3.16644,3158.2,3157.3,3.22722]
[1731769579160,3.1665,3158.1,3157.4,3.55288583]
[1731769579358,3.16656,3158.0,3157.4,0.38572583]
[1731769579604,3.16668,3157.9,3157.5,0.06328003]
[1731769579776,3.69387717,3158.6,3157.5,0.06328003]
[1731769579777,3.16696,3157.6,3157.5,0.06328003]
[1731769579986,3.16696,3157.6,3157.3,0.06]
[1731769580389,3.16641,3158.2,3157.4,0.06330912]
[1731769580731,3.16706,3157.5,3157.4,0.06330912]
[1731769581081,3.16706,3157.5,3156.9,3.16765]
[1731769581325,3.16706,3157.5,3157.0,0.06]
[1731769581487,3.16706,3157.5,3157.0,0.12440906]
[1731769581889,3.16706,3157.5,3157.0,0.06440906]
[1731769582219,3.16746,3157.1,3157.0,0.06440906]
[1731769582534,3.16746,3157.1,3156.2,0.1455694]
[1731769582535,3.16708,3157.5,3156.6,3.16793]
[1731769582688,3.16708,3157.5,3157.0,0.06236771]
[1731769582889,3.16708,3157.5,3156.6,3.16793]
[1731769583088,3.16707,3157.5,3157.1,0.06232948]
[1731769583289,3.0,3157.7,3156.4,0.69432681]
[1731769583502,3.16727,3157.3,3157.2,0.0623233]
[1731769583834,3.16727,3157.3,3156.6,3.16786]
[1731769584013,3.16707,3157.5,3156.9,3.16764]
[1731769584239,3.16707,3157.5,3156.8,3.16776]
[1731769584527,3.16688,3157.7,3156.8,3.16776]
[1731769584528,3.16688,3157.7,3157.0,0.06166575]
[1731769584728,3.16699,3157.6,3156.9,0.06174378]
[1731769584900,3.16733,3157.3,3157.1,0.0616541]
[1731769585104,3.16708,3157.5,3157.0,0.06167847]
[1731769585404,3.16641,3158.2,3157.0,0.06167847]
[1731769585405,3.16605,3158.5,3157.1,3.16741]
[1731769585602,3.16605,3158.5,3157.8,3.16667]
[1731769585809,3.69387717,3158.6,3157.8,3.16667]
[1731769586135,3.16627,3158.3,3157.9,0.06152316]
[1731769586301,3.16643,3158.2,3157.9,0.06152316]
[1731769586505,3.69387717,3158.6,3158.0,3.16646]
[1731769586708,3.16587,3158.7,3158.0,3.48925832]
[1731769587005,3.69387717,3159.0,3158.0,3.48925832]
[1731769587006,3.16576,3158.8,3158.2,3.16629]
[1731769587409,3.69387717,3159.0,3158.4,3.1661]
[1731769587596,3.16528,3159.3,3158.6,3.16588]
[1731769587937,3.16528,3159.3,3158.6,3.482468]
[1731769588234,3.69387717,3159.4,3158.8,3.16568]
[1731769588538,6.85911717,3159.4,3158.7,0.06179986]
[1731769588745,6.85911717,3159.4,3158.6,0.316588]
[1731769588746,3.69387717,3159.4,3158.9,0.06172081]
[1731769588952,6.85908717,3159.4,3158.7,3.16584]
[1731769589230,3.16526,3159.3,3158.7,0.633189]
[1731769589435,3.69387717,3159.4,3158.8,0.06172328]
[1731769589942,3.16468,3159.9,3159.2,3.16528]
[1731769590246,3.69387717,3160.2,3159.3,0.06070094]
[1731769590393,3.16445,3160.1,3159.3,0.06070094]
[1731769590720,3.16462,3160.0,3159.3,0.06070094]
[1731769590921,3.16483,3159.8,3159.3,0.06070094]
[1731769591134,3.16482,3159.8,3158.8,3.16575]
[1731769591434,0.55,3159.6,3159.0,3.16549]
[1731769591646,3.16505,3159.5,3158.9,0.06149051]
[1731769591822,3.71565,3158.9,3157.9,3.16662]
[1731769592057,0.55,3158.1,3157.2,0.317741]
[1731769592212,0.55,3158.1,3157.4,3.16706]
[1731769592415,0.55,3158.1,3157.5,3.16697]
[1731769592751,0.55,3158.5,3157.5,3.16697]
[1731769592902,0.55,3158.1,3157.5,3.16697]
[1731769593292,0.55,3158.3,3157.0,0.01]
[1731769593494,0.55,3158.0,3157.3,3.16718]
[1731769593813,0.55,3157.7,3157.0,3.47880477]
[1731769594016,0.55,3157.7,3157.0,3.16751]
[1731769594017,3.71694,3157.7,3157.0,3.16751]
[1731769594529,0.55,3157.5,3157.0,3.16751]
[1731769594893,0.55,3157.5,3156.6,3.16788]
[1731769595205,3.16698,3157.6,3156.6,3.490668]
[1731769595206,0.55,3157.3,3156.6,3.490668]
[1731769595363,0.55,3157.3,3156.7,3.16784]
[1731769595582,0.55,3157.2,3156.6,3.490738]
[1731769595857,0.55,3157.2,3156.9,0.61762005]
[1731769596219,0.55,3157.0,3156.6,0.322788]
[1731769596414,0.55,3157.0,3156.6,3.490748]
[1731769596641,0.55,3157.2,3156.7,0.3490748]
[1731769596853,3.71736,3157.2,3156.5,3.168]
[1731769597155,3.71736,3157.2,3156.4,3.22815]
[1731769597156,0.55,3157.2,3156.8,0.05984378]
[1731769597363,3.71742,3157.2,3156.4,3.87324797]
[1731769597512,0.55,3157.2,3156.9,0.0576993]
[1731769597712,3.16726,3157.3,3156.5,3.16805]
[1731769597713,0.55,3157.3,3156.5,3.16805]
[1731769598030,0.55,3157.3,3156.8,3.16776]
[1731769598419,0.55,3157.3,3156.9,3.22251038]
[1731769598615,0.55,3157.6,3156.9,3.22251038]
[1731769598819,3.16717,3157.4,3156.9,0.05488038]
[1731769599054,3.16646,3158.1,3156.8,0.06335241]
[1731769599296,3.16648,3158.1,3157.4,3.16708]
[1731769599451,3.16648,3158.1,3157.5,3.16705]
[1731769599657,3.16631,3158.3,3157.5,3.22170925]
[1731769600067,3.16657,3158.0,3157.5,0.05465925]
[1731769600273,3.69387717,3158.6,3157.5,0.32218892]
[1731769600599,3.16637,3158.2,3157.6,3.22151761]
[1731769600894,3.69387717,3158.6,3157.6,0.05457761]
[1731769601097,0.55,3157.8,3157.3,3.16725]
[1731769601302,0.55,3157.9,3157.7,0.05452258]
[1731769601503,3.16658,3158.0,3157.3,3.80072]
[1731769601504,0.55,3158.0,3157.4,3.16713]
[1731769601795,0.55,3158.0,3157.8,0.05448441]
[1731769601957,3.16686,3157.7,3157.0,3.16746]
[1731769602295,3.16622,3158.4,3155.7,8.13989417]
[1731769602296,0.55,3157.3,3156.2,0.1455694]
[1731769602496,0.55,3157.3,3156.8,3.16775]
[1731769602864,0.55,3157.3,3156.6,3.16792]
[1731769603068,0.55,3157.3,3156.2,0.1455694]
[1731769603278,3.69387717,3157.8,3156.2,0.1455694]
[1731769603279,0.55,3156.6,3156.2,3.3139094]
[1731769603853,0.55,3156.8,3156.2,3.3139094]
[1731769604055,0.55,3156.8,3156.3,0.33139094]
[1731769604270,3.71759,3157.0,3156.3,3.16825]
[1731769604475,3.71759,3157.0,3156.2,0.1455694]
[1731769604660,3.71759,3157.0,3156.4,3.16815]
[1731769605166,3.16766,3156.9,3156.2,3.3138494]
[1731769605366,0.55,3156.8,3156.3,3.22825]
[1731769605570,0.55,3156.8,3156.3,3.22823]
[1731769605768,3.69387717,3157.4,3156.3,3.22823]
[1731769605769,3.16708,3157.5,3156.3,0.1233601]
[1731769605986,3.69387717,3157.8,3156.9,3.1676]
[1731769606302,3.69387717,3157.8,3157.0,0.05464993]
[1731769606303,3.16717,3157.4,3157.0,0.05464993]
[1731769606502,3.16706,3157.5,3157.0,0.05464993]
[1731769606811,3.16706,3157.5,3156.8,3.16766]
[1731769606986,3.16706,3157.5,3157.1,0.05461174]
[1731769607502,0.55,3157.4,3157.2,0.05268382]
[1731769607662,0.55,3157.4,3156.8,3.16766]
[1731769607858,0.55,3157.4,3157.3,0.05264563]
[1731769608064,0.55,3157.4,3156.8,3.83284]
[1731769608296,3.71716,3157.4,3157.3,0.05264563]
[1731769608455,3.69387717,3157.8,3157.3,0.05264563]
[1731769608456,0.55,3157.6,3157.3,0.05264563]
[1731769608804,3.16648,3158.1,3157.2,3.16729]
[1731769609005,3.16684,3157.8,3157.0,0.3162]
[1731769609193,3.16665,3158.0,3157.3,0.05264563]
[1731769609509,3.16665,3158.0,3157.2,3.16728]
[1731769609708,3.16665,3158.0,3157.4,0.05260745]
[1731769609864,3.16677,3157.8,3157.4,0.05260745]
[1731769610060,3.16665,3158.0,3157.4,0.05260745]
[1731769610315,6.86026717,3158.2,3157.4,0.05260745]
[1731769610316,0.55,3157.9,3157.4,0.05260745]
[1731769610461,0.55,3157.6,3157.4,0.05260745]
[1731769610669,0.55,3157.6,3157.0,0.3162]
[1731769610864,3.71705,3157.6,3157.5,0.05257593]
[1731769611066,3.16706,3157.5,3156.7,3.16786]
[1731769611262,0.55,3157.4,3156.8,3.16775]
[1731769611494,3.16727,3157.3,3156.6,3.48413]
[1731769611803,0.55,3157.2,3156.6,3.16793]
[1731769612120,3.69387717,3157.8,3156.2,0.1555694]
[1731769612121,0.55,3157.4,3156.8,3.16774]
[1731769612269,3.16657,3158.0,3156.9,0.38011882]
[1731769612602,3.16662,3158.0,3157.0,3.16748]
[1731769612787,3.16662,3158.0,3157.1,3.16743]
[1731769612962,3.16686,3157.7,3157.1,3.16743]
[1731769613167,3.16686,3157.7,3157.1,0.3484204]
[1731769613404,3.16667,3157.9,3157.2,3.16734]
[1731769613613,0.55,3157.8,3157.2,3.16734]
[1731769614262,3.16646,3158.1,3157.2,3.16734]
[1731769614263,0.55,3158.0,3157.2,3.16734]
[1731769614469,0.55,3157.8,3157.2,3.16734]
[1731769614711,0.55,3157.8,3157.3,0.316734]
[1731769614864,0.55,3157.8,3157.3,3.483964]
[1731769615069,3.16646,3158.1,3157.4,3.16716]
[1731769615070,0.55,3158.0,3157.4,3.16716]
[1731769615287,0.55,3158.2,3157.3,0.316734]
[1731769615493,0.55,3158.2,3157.7,3.16685]
[1731769615723,3.16607,3158.5,3156.8,0.01]
[1731769615724,3.16625,3158.4,3156.8,0.01]
[1731769615872,0.55,3158.2,3157.6,3.16688]
[1731769616073,3.71637,3158.2,3157.6,3.16688]
[1731769616385,0.55,3157.9,3157.3,3.16719]
[1731769616912,0.55,3157.9,3157.1,3.16744]
[1731769617213,0.55,3157.9,3156.7,3.16781]
[1731769617508,0.55,3158.0,3157.4,3.16714]
[1731769618308,3.59055772,3158.4,3157.8,3.16675]
[1731769618309,0.55,3158.3,3157.8,3.16675]
[1731769618515,0.55,3158.0,3157.4,3.16715]
[1731769618726,0.55,3158.0,3157.2,3.16734]
[1731769618861,0.55,3158.0,3157.5,3.16705]
[1731769619067,0.55,3157.7,3157.2,3.16732]
[1731769619507,0.55,3157.7,3156.8,0.94584307]
[1731769619508,0.55,3157.8,3157.0,3.16753]
[1731769619711,3.16693,3157.7,3157.0,3.57886731]
[1731769619911,3.71698,3157.6,3157.0,3.57886731]
[1731769620070,0.55,3157.3,3156.7,3.16783]
[1731769620469,3.71726,3157.3,3156.7,3.16783]
[1731769620782,0.55,3157.4,3156.2,0.1555694]
[1731769620981,0.55,3157.4,3156.8,0.05199978]
[1731769620982,3.69387717,3157.4,3156.8,0.05199978]
[1731769621183,3.69387717,3157.4,3156.2,0.1455694]
[1731769621184,3.71773,3156.9,3156.2,0.1455694]
[1731769621396,0.55,3156.7,3156.2,0.1455694]
[1731769621611,0.55,3156.7,3156.3,3.16826]
[1731769621804,0.55,3156.9,3156.4,3.16815]
[1731769622196,3.71746,3157.1,3156.4,3.16809]
[1731769622380,0.55,3157.4,3156.5,0.06335925]
[1731769622580,3.16687,3157.7,3156.4,0.65453795]
[1731769622581,3.71686,3157.7,3156.4,0.65453795]
[1731769622816,3.71686,3157.7,3156.3,3.16824]
[1731769622817,0.55,3157.3,3156.7,3.16784]
[1731769622992,3.71733,3157.3,3156.6,3.16794]
[1731769623541,3.71733,3157.3,3156.5,3.16798]
[1731769623542,0.55,3157.1,3156.5,3.16798]
[1731769624037,0.55,3157.1,3156.4,0.0633511]
[1731769624038,3.71747,3157.1,3156.4,3.1681]
[1731769624235,0.55,3156.8,3156.5,0.06]
[1731769624784,3.71778,3156.8,3156.5,0.06]
[1731769625488,3.71778,3156.8,3156.2,3.3138794]
[1731769625489,3.16817,3156.4,3156.2,0.1455694]
[1731769625714,0.55,3156.3,3156.2,0.1455694]
[1731769625916,3.71804,3156.6,3156.2,0.2055694]
[1731769626125,0.55,3156.6,3156.2,0.2055694]
[1731769626326,3.71826,3156.3,3156.2,0.2055694]
[1731769626534,3.71826,3156.3,3156.2,0.1455694]
[1731769627247,3.71846,3156.1,3156.0,1e-05]
[1731769627535,11.15700917,3156.1,3156.0,1e-05]
[1731769628290,3.17058,3154.0,3153.2,0.035175]
[1731769628540,3.17047,3154.1,3154.0,0.06]
[1731769628719,3.17047,3154.1,3153.2,0.035175]
[1731769628720,3.17106,3153.6,3153.2,0.035175]
[1731769628901,3.69387717,3153.8,3153.2,0.035175]
[1731769629130,3.69387717,3153.8,3153.3,0.04249186]
[1731769629131,6.86510717,3153.4,3153.3,0.04249186]
[1731769629344,6.86510717,3153.4,3152.8,2.39909173]
[1731769629345,3.17168,3152.9,3152.8,2.39909173]
[1731769629551,6.86555717,3152.9,3152.8,2.39909173]
[1731769629866,6.86555717,3152.9,3152.8,0.38211493]
[1731769629867,10.89026689,3152.9,3152.8,0.38211493]
[1731769630034,10.89026689,3152.9,3152.8,4.93e-06]
[1731769630262,3.17309,3151.5,3151.0,5.94e-06]
[1731769630434,9.86736717,3151.1,3151.0,5.94e-06]
[1731769630761,3.17412,3150.5,3149.9,0.1455694]
[1731769630934,3.174,3150.6,3149.9,0.1455694]
[1731769630935,3.1742,3150.4,3149.9,0.1455694]
[1731769631342,3.1742,3150.4,3150.0,3.84124088]
[1731769631343,0.55,3150.1,3150.0,3.84124088]
[1731769631518,7.41837717,3150.1,3150.0,3.84124088]
[1731769631720,3.49173,3150.3,3150.0,3.84124088]
[1731769631721,3.72442,3150.2,3150.0,3.84124088]
[1731769631924,3.72442,3150.2,3149.0,0.04121943]
[1731769631925,0.01,3149.7,3149.0,0.04121943]
[1731769632179,4.38375017,3150.1,3149.0,0.04121943]
[1731769632180,0.55,3149.1,3149.0,0.04121943]
[1731769632527,0.55,3149.8,3149.0,0.04121943]
[1731769632723,0.55,3150.0,3149.0,3.21680943]
[1731769632923,0.55,3150.0,3149.2,3.17537]
[1731769633161,0.67166026,3151.1,3149.2,0.07350479]
[1731769633162,3.17372,3150.9,3149.2,0.07350479]
[1731769633360,0.66166026,3151.1,3149.8,3.17479]
[1731769633361,3.0,3151.1,3149.8,3.17479]
[1731769633571,3.0,3151.2,3149.9,3.17469]
[1731769633880,3.0,3151.2,3149.7,35.0]
[1731769634021,0.02,3151.6,3149.0,0.04121943]
[1731769634022,7.11534386,3150.3,3149.0,0.04121943]
[1731769634224,3.17542,3149.2,3149.0,0.04121943]
[1731769634537,0.55,3149.2,3149.0,0.04121943]
[1731769635068,3.72508,3149.6,3149.0,0.04121943]
[1731769635220,3.72508,3149.6,3147.1,3.80097804]
[1731769635221,0.01,3148.7,3146.7,0.1455694]
[1731769635569,4.66534386,3149.1,3147.2,3.17734]
[1731769635570,6.17614,3148.5,3147.2,3.17734]
[1731769635719,6.17614,3148.5,3147.2,35.0]
[1731769635720,3.0,3148.5,3147.2,35.0]
[1731769635920,3.17636,3148.3,3147.2,3.14099947]
[1731769636156,7.10534386,3149.1,3147.6,3.17701]
[1731769636370,3.17547,3149.2,3147.6,3.17694]
[1731769636542,3.17561,3149.0,3147.7,3.20607515]
[1731769636756,3.17551,3149.1,3147.8,3.17677]
[1731769637125,3.17584,3148.8,3147.9,0.02908268]
[1731769637378,3.0,3148.9,3147.9,0.02908268]
[1731769637533,3.0,3148.9,3147.2,3.17733]
[1731769637534,3.17611,3148.5,3147.2,3.17741]
[1731769637727,3.0,3148.6,3146.7,0.48793034]
[1731769637970,0.619561,3148.8,3147.5,3.17712]
[1731769638266,0.619561,3148.8,3147.3,0.0293]
[1731769638267,6.17602,3148.6,3147.6,0.03029795]
[1731769638483,6.17602,3148.6,3147.2,3.17742]
[1731769638692,3.17602,3148.6,3147.7,0.03027097]
[1731769638832,3.17602,3148.6,3147.2,3.17742]
[1731769639023,3.17612,3148.5,3147.3,0.34818976]
[1731769639227,3.0,3149.0,3147.4,3.17722]
[1731769639430,3.0,3149.0,3147.3,0.34818976]
[1731769639431,3.17583,3148.8,3147.5,3.20745659]
[1731769639723,3.17583,3148.8,3147.6,35.0]
[1731769639954,0.01,3148.7,3147.5,0.03034659]
[1731769640138,0.55,3148.4,3147.7,0.02969887]
[1731769640349,3.72641,3148.2,3146.7,0.1455694]
[1731769640549,0.67362,3148.3,3147.1,3.17752]
[1731769640748,0.37742529,3149.4,3147.1,3.17752]
[1731769640749,0.01,3148.8,3147.1,3.17752]
[1731769640970,0.01,3148.8,3146.7,0.20911991]
[1731769640971,3.17601,3148.6,3147.2,0.0301555]
[1731769641181,3.17521,3149.4,3148.0,3.17658]
[1731769641385,3.17521,3149.4,3146.8,7.28314386]
[1731769641386,3.17783,3146.8,3145.2,35.0]
[1731769641531,3.18783,3146.8,3145.0,0.5]
[1731769641732,3.17732,3147.3,3145.0,0.5]
[1731769641733,0.02,3147.8,3145.0,4.62534386]
[1731769642043,0.02,3147.8,3145.7,3.17894]
[1731769642044,0.01,3147.1,3145.7,3.17894]
[1731769642341,0.01,3146.8,3146.7,9.4e-06]
[1731769642557,7.057592,3146.8,3146.7,9.4e-06]
[1731769642865,7.067592,3146.8,3146.7,9.4e-06]
[1731769643064,6.497592,3146.8,3146.7,9.4e-06]
[1731769643272,7.057592,3146.8,3146.7,9.4e-06]
[1731769643490,6.507592,3146.8,3146.7,9.4e-06]
[1731769643633,6.497592,3146.8,3146.7,9.4e-06]
[1731769644358,0.64124221,3147.7,3146.7,9.4e-06]
[1731769644359,3.18725,3147.4,3146.7,9.4e-06]
[1731769644673,3.17697,3147.7,3146.7,9.4e-06]
[1731769644833,0.65003654,3147.8,3146.7,9.4e-06]
[1731769644834,3.17702,3147.6,3146.7,9.4e-06]
[1731769645038,0.65003654,3147.8,3146.7,9.4e-06]
[1731769645039,3.17682,3147.8,3146.7,9.4e-06]
[1731769645265,0.317682,3147.7,3146.7,9.4e-06]
[1731769645456,3.17702,3147.6,3146.7,9.4e-06]
[1731769646169,0.317682,3147.7,3146.7,9.4e-06]
[1731769646673,3.17663,3148.0,3146.7,9.4e-06]
[1731769646891,3.17641,3148.2,3146.7,35.0000094]
[1731769647080,3.17641,3148.2,3146.7,9.4e-06]
[1731769647081,0.01,3147.4,3146.7,9.4e-06]
[1731769647367,3.17783,3146.8,3146.7,9.4e-06]
[1731769648335,6.72783,3146.8,3146.7,9.4e-06]
[1731769648534,6.17783,3146.8,3146.7,9.4e-06]
[1731769649041,6.74783,3146.8,3146.7,9.4e-06]
[1731769649377,8.14646266,3146.8,3146.7,9.4e-06]
[1731769649591,8.47761994,3146.8,3146.7,9.4e-06]
[1731769649734,12.5829638,3146.8,3146.7,9.4e-06]
[1731769650453,12.5829638,3146.8,3146.0,0.00318]
[1731769650454,3.19853,3146.1,3146.0,9.4e-06]
[1731769650777,3.19853,3146.1,3143.4,0.63046172]
[1731769650778,3.0,3144.7,3143.4,0.49764645]
[1731769650979,0.01,3144.6,3143.4,0.49764645]
[1731769651238,3.73106,3143.6,3141.8,3.52272727]
[1731769651345,3.73106,3143.6,3142.8,0.49785556]
[1731769651346,3.18177,3142.9,3142.8,0.49785556]
[1731769651680,3.18177,3142.9,3141.8,3.52272727]
[1731769651681,0.42446404,3143.6,3142.6,3.18199]
[1731769651890,3.18078,3143.9,3142.8,3.18186]
[1731769652239,3.18049,3144.2,3142.7,3.500169]
[1731769652445,3.18049,3144.2,3143.1,3.18153]
[1731769652683,3.18006,3144.6,3143.2,3.18147]
[1731769652893,0.01,3145.4,3143.2,3.18147]
[1731769652894,3.18912,3145.6,3143.5,3.18115]
[1731769653040,3.17988,3144.8,3143.6,3.499175]
[1731769653244,0.02,3145.6,3142.9,0.01]
[1731769653444,3.18025,3144.5,3143.3,3.18127]
[1731769653746,3.17967,3145.0,3143.9,3.18066]
[1731769654022,3.18006,3144.6,3143.2,3.18139]
[1731769654288,0.317939,3145.2,3144.0,3.18062]
[1731769654487,0.317939,3145.2,3143.7,0.01]
[1731769654696,0.73042639,3145.6,3143.9,3.1807]
[1731769654897,3.17955,3145.1,3144.1,3.18049]
[1731769655259,3.17914,3145.5,3143.5,0.01]
[1731769655477,0.39095664,3145.4,3143.8,3.18076]
[1731769655790,0.73042639,3145.6,3144.4,3.1802]
[1731769655791,3.17917,3145.5,3144.4,3.1802]
[1731769656000,3.17859,3146.1,3144.8,3.17978]
[1731769656153,3.17833,3146.3,3145.0,3.17965]
[1731769656351,3.17894,3145.7,3144.8,3.17984]
[1731769656581,0.635769,3145.7,3144.8,3.17984]
[1731769656789,3.814729,3145.7,3144.6,3.18]
[1731769656996,4.10534386,3146.3,3144.6,3.17998]
[1731769657405,3.50900728,3146.8,3144.7,0.06359351]
[1731769657692,3.1789,3145.8,3144.6,0.01]
[1731769657897,0.33115728,3146.8,3144.6,0.01]
[1731769657898,3.17866,3146.0,3145.1,3.17946]